lending/lending_fUSD_20240621
["ID","MTS","AMOUNT","RATE_DAILY","PERIOD"]
[330087279,1718989886304,-500.0,0.00024383,4]
[330087280,1718989886313,-1201.37,0.00024383,4]
[330087281,1718989886323,-500.0,0.00024383,4]
[330087282,1718989886331,-522.9,0.00024383,4]
[330087283,1718989886341,-742.2,0.00024383,4]
[330087284,1718989886350,-622.23364403,0.00024383,4]
[330087285,1718989886359,-500.0,0.00024383,4]
[330087286,1718989886368,-500.0,0.00024383,4]
[330087287,1718989886377,-1192.22,0.00024383,4]
[330087288,1718989886386,-500.0,0.00024383,4]
[330087289,1718989886395,-500.0,0.00024383,4]
[330087290,1718989886404,-938.16,0.00024383,4]
[330087291,1718989886415,-500.0,0.00024383,4]
[330087292,1718989886425,-1372.38,0.00024383,4]
[330087293,1718989886435,-153.25479514,0.00024383,4]
[330087294,1718989886444,-500.0,0.00024383,4]
[330087295,1718989886453,-624.64,0.00024383,4]
[330087296,1718989886462,-188.29413424,0.00024383,4]
[330087297,1718989886473,-1457.99,0.00024383,4]
[330087298,1718989886483,-500.0,0.00024383,4]
[330087299,1718989886493,-511.55,0.00024383,4]
[330087300,1718989886503,-500.0,0.00024383,4]
[330087301,1718989886514,-595.44,0.00024383,4]
[330087302,1718989886525,-500.0,0.00024383,4]
[330087303,1718989886538,-963.23,0.00024383,4]
[330087304,1718989886547,-500.0,0.00024383,4]
[330087305,1718989886556,-759.23,0.00024383,4]
[330087306,1718989886566,-1020.76,0.00024383,4]
[330087307,1718989886576,-500.0,0.00024383,4]
[330087308,1718989886586,-500.0,0.00024383,4]
[330087309,1718989886595,-1064.78,0.00024383,4]
[330087310,1718989886608,-873.22,0.00024383,4]
[330087311,1718989886618,-500.0,0.00024383,4]
[330087312,1718989886628,-733.93,0.00024383,4]
[330087313,1718989886637,-500.0,0.00024383,4]
[330087314,1718989886647,-2686.69,0.00024383,4]
[330087315,1718989886657,-1011.28,0.00024383,4]
[330087316,1718989886668,-852.94,0.00024383,4]
[330087317,1718989886677,-554.48,0.00024383,4]
[330087318,1718989886686,-500.0,0.00024383,4]
[330087319,1718989886695,-500.0,0.00024383,4]
[330087320,1718989886706,-500.0,0.00024383,4]
[330087321,1718989886716,-357.7454195,0.00024383,4]
[330087322,1718989886726,-500.0,0.00024383,4]
[330087323,1718989886736,-500.0,0.00024383,4]
[330087324,1718989886746,-500.0,0.00024383,4]
[330087325,1718989886758,-500.0,0.00024383,4]
[330087326,1718989886768,-500.0,0.00024383,4]
[330087327,1718989886778,-500.0,0.00024383,4]
[330087328,1718989886788,-248.96,0.00024383,4]
[330087329,1718989886799,-500.0,0.00024383,4]
[330087330,1718989886809,-500.0,0.00024383,4]
[330087331,1718989886819,-768.74,0.00024383,4]
[330087332,1718989886830,-1467.03,0.00024383,4]
[330087333,1718989886840,-500.0,0.00024383,4]
[330087334,1718989886849,-1066.65,0.00024383,4]
[330087335,1718989886859,-735.92,0.00024383,4]
[330087336,1718989886868,-500.0,0.00024383,4]
[330087337,1718989886878,-500.0,0.00024383,4]
[330087338,1718989886888,-899.57,0.00024383,4]
[330087339,1718989886898,-1342.26,0.00024383,4]
[330087340,1718989886909,-500.0,0.00024383,4]
[330087341,1718989886919,-429.53,0.00024383,4]
[330087342,1718989886928,-585.36,0.00024383,4]
[330087343,1718989886938,-509.69,0.00024383,4]
[330087344,1718989886948,-667.28,0.00024383,4]
[330087345,1718989886957,-500.0,0.00024383,4]
[330087346,1718989886967,-858.28,0.00024383,4]
[330087347,1718989886976,-2179.3,0.00024383,4]
[330087348,1718989886986,-906.35,0.00024383,4]
[330087349,1718989886995,-500.0,0.00024383,4]
[330087350,1718989887004,-559.84,0.00024383,4]
[330087351,1718989887013,-500.0,0.00024383,4]
[330087352,1718989887023,-1415.8,0.00024383,4]
[330087353,1718989887032,-1930.31,0.00024383,4]
[330087354,1718989887042,-1505.14,0.00024383,4]
[330087355,1718989887051,-859.86,0.00024383,4]
[330087356,1718989887060,-500.0,0.00024383,4]
[330087357,1718989887069,-642.24,0.00024383,4]
[330087358,1718989887079,-1397.1,0.00024383,4]
[330087359,1718989887088,-602.59,0.00024383,4]
[330087360,1718989887099,-570.91,0.00024383,4]
[330087361,1718989887112,-155.990529,0.00024383,7]
[330087362,1718989887122,-669.19,0.00024383,4]
[330087363,1718989887131,-500.0,0.00024383,4]
[330087364,1718989887141,-1901.91,0.00024383,4]
[330087365,1718989887153,-1273.57,0.00024383,4]
[330087366,1718989887163,-500.0,0.00024383,4]
[330087367,1718989887173,-500.0,0.00024383,4]
[330087368,1718989887184,-963.28,0.00024383,4]
[330087369,1718989887194,-532.82,0.00024383,4]
[330087370,1718989887203,-500.0,0.00024383,4]
[330087371,1718989887212,-2148.29,0.00024383,4]
[330087372,1718989887222,-904.13,0.00024383,4]
[330087373,1718989887231,-500.0,0.00024383,4]
[330087374,1718989887240,-500.0,0.00024383,4]
[330087375,1718989887250,-1923.19,0.00024383,4]
[330087376,1718989887259,-1655.82,0.00024383,4]
[330087377,1718989887268,-500.0,0.00024383,4]
[330087378,1718989887277,-590.93,0.00024383,4]
[330087379,1718989887286,-511.56,0.00024383,4]
[330087380,1718989887296,-1612.01,0.00024383,4]
[330087381,1718989887305,-500.0,0.00024383,4]
[330087382,1718989887314,-2137.42,0.00024383,4]
[330087383,1718989887323,-573.05,0.00024383,4]
[330087384,1718989887333,-3053.94,0.00024383,4]
[330087385,1718989887342,-500.0,0.00024383,4]
[330087386,1718989887351,-576.14227104,0.00024383,4]
[330087387,1718989887360,-500.0,0.00024383,4]
[330087388,1718989887370,-639.37,0.00024383,4]
[330087389,1718989887380,-2243.82,0.00024383,4]
[330087390,1718989887389,-682.46,0.00024383,4]
[330087391,1718989887398,-1600.73,0.00024383,4]
[330087392,1718989887408,-500.0,0.00024383,4]
[330087393,1718989887419,-696.06,0.00024383,4]
[330087394,1718989887428,-500.0,0.00024383,4]
[330087395,1718989887441,-1542.7,0.00024383,4]
[330087396,1718989887451,-1105.98,0.00024383,4]
[330087397,1718989887460,-1549.93,0.00024383,4]
[330087398,1718989887469,-833.57,0.00024383,4]
[330087399,1718989887479,-2659.75,0.00024383,4]
[330087400,1718989887488,-500.0,0.00024383,4]
[330087401,1718989887497,-500.0,0.00024383,4]
[330087402,1718989887506,-1158.3,0.00024383,4]
[330087403,1718989887515,-500.0,0.00024383,4]
[330087404,1718989887525,-833.78,0.00024383,4]
[330087405,1718989887535,-533.64,0.00024383,4]
[330087406,1718989887544,-685.86,0.00024383,4]
[330087407,1718989887553,-1289.2,0.00024383,4]
[330087408,1718989887562,-1090.97,0.00024383,4]
[330087409,1718989887572,-500.0,0.00024383,4]
[330087410,1718989887581,-599.47,0.00024383,4]
[330087411,1718989887590,-2819.08,0.00024383,4]
[330087412,1718989887599,-7009.44,0.00024383,4]
[330087413,1718989887610,-591.52,0.00024383,4]
[330087414,1718989887619,-1505.93,0.00024383,4]
[330087415,1718989887629,-824.93,0.00024383,4]
[330087416,1718989887638,-500.0,0.00024383,4]
[330087417,1718989887648,-3331.02,0.00024383,4]
[330087418,1718989887657,-1405.37,0.00024383,4]
[330087419,1718989887669,-5922.66,0.00024383,4]
[330087420,1718989887679,-500.0,0.00024383,4]
[330087421,1718989887688,-905.75,0.00024383,4]
[330087422,1718989887697,-6608.91,0.00024383,4]
[330087423,1718989887707,-500.0,0.00024383,4]
[330087424,1718989887716,-580.05,0.00024383,4]
[330087425,1718989887725,-500.0,0.00024383,4]
[330087426,1718989887735,-540.71,0.00024383,4]
[330087427,1718989887745,-838.13,0.00024383,4]
[330087428,1718989887755,-500.0,0.00024383,4]
[330087429,1718989887767,-823.35,0.00024383,4]
[330087430,1718989887776,-535.25,0.00024383,4]
[330087431,1718989887786,-887.04,0.00024383,4]
[330087432,1718989887796,-1378.35,0.00024383,4]
[330087433,1718989887806,-500.0,0.00024383,4]
[330087434,1718989887818,-500.0,0.00024383,4]
[330087435,1718989887828,-1812.66,0.00024383,4]
[330087436,1718989887837,-1256.45,0.00024383,4]
[330087437,1718989887848,-647.36,0.00024383,4]
[330087438,1718989887857,-772.11,0.00024383,4]
[330087439,1718989887867,-500.0,0.00024383,4]
[330087440,1718989887877,-939.73,0.00024383,4]
[330087441,1718989887888,-1304.96,0.00024383,4]
[330087442,1718989887899,-500.0,0.00024383,4]
[330087443,1718989887910,-1184.79,0.00024383,4]
[330087444,1718989887923,-1482.67,0.00024383,4]
[330087445,1718989887934,-1172.14,0.00024383,4]
[330087446,1718989887943,-500.0,0.00024383,4]
[330087447,1718989887952,-500.0,0.00024383,4]
[330087448,1718989887961,-638.69,0.00024383,4]
[330087449,1718989887970,-1060.14,0.00024383,4]
[330087450,1718989887979,-3886.53,0.00024383,4]
[330087451,1718989887988,-654.99,0.00024383,4]
[330087452,1718989887997,-1021.14,0.00024383,4]
[330087453,1718989888006,-500.0,0.00024383,4]
[330087454,1718989888015,-25963.77,0.00024383,4]
[330087455,1718989888025,-1656.59,0.00024383,4]
[330087456,1718989888034,-1438.15,0.00024383,4]
[330087457,1718989888044,-500.0,0.00024383,4]
[330087458,1718989888054,-1558.07,0.00024383,4]
[330087459,1718989888064,-500.0,0.00024383,4]
[330087460,1718989888073,-1206.43,0.00024383,4]
[330087461,1718989888082,-1774.24,0.00024383,4]
[330087462,1718989888092,-1123.84,0.00024383,4]
[330087463,1718989888107,-1807.53,0.00024383,4]
[330087464,1718989888116,-1718.78,0.00024383,4]
[330087465,1718989888125,-500.0,0.00024383,4]
[330087466,1718989888135,-500.0,0.00024383,4]
[330087467,1718989888146,-736.5,0.00024383,4]
[330087468,1718989888155,-500.0,0.00024383,7]
[330087469,1718989888169,-333.24262269,0.0002442,2]
[330087470,1718989888180,-25000.0,0.0002448,2]
[330087471,1718989888191,-1585.5724524,0.000245,2]
[330087472,1718989888200,-6421.9,0.00024546,7]
[330087473,1718989888210,-6421.9,0.00024546,7]
[330087474,1718989888219,-528.91,0.00024562,2]
[330087475,1718989888229,-166.66666666,0.00024577,2]
[330087476,1718989888239,-2500.0,0.00024621,2]
[330087477,1718989888248,-1356.86,0.00024633,4]
[330087478,1718989888258,-3062.37,0.00024633,4]
[330087479,1718989888267,-1533.09,0.00024633,4]
[330087480,1718989888278,-5990.91,0.00024633,4]
[330087481,1718989888288,-1110.17,0.00024633,4]
[330087482,1718989888297,-11925.19,0.00024633,4]
[330087483,1718989888307,-3672.46,0.00024633,4]
[330087484,1718989888317,-6178.73,0.00024633,4]
[330087485,1718989888326,-1501.96,0.00024633,4]
[330087486,1718989888335,-212.19140625,0.00024633,4]
[330087487,1718989888348,-3518.52,0.00024633,4]
[330087488,1718989888358,-16602.73,0.00024633,4]
[330087489,1718989888367,-1989.12,0.00024645,4]
[330087490,1718989888377,-2398.6,0.00024645,4]
[330087491,1718989888386,-42723.34,0.00024645,4]
[330087492,1718989888396,-1860.96,0.00024645,4]
[330087493,1718989888406,-7757.24,0.00024645,4]
[330087494,1718989888417,-2969.44,0.00024645,4]
[330087495,1718989888426,-500.0,0.00024645,2]
[330087496,1718989888435,-2619.5,0.00024645,4]
[330087497,1718989888444,-4343.94,0.00024645,4]
[330087498,1718989888454,-946.76,0.00024645,4]
[330087499,1718989888464,-1067.33,0.00024645,4]
[330087500,1718989888474,-11069.13,0.00024645,4]
[330087501,1718989888483,-2041.56,0.00024645,4]
[330087502,1718989888492,-2855.93,0.00024645,4]
[330087503,1718989888501,-1902.36,0.00024645,4]
[330087504,1718989888511,-871.25,0.00024646,4]
[330087505,1718989888520,-2040.63,0.00024646,4]
[330087506,1718989888530,-1063.28,0.00024646,4]
[330087507,1718989888539,-2566.45,0.00024646,4]
[330087508,1718989888548,-1747.85,0.00024646,4]
[330087509,1718989888558,-574.66,0.00024646,4]
[330087510,1718989888567,-1705.93,0.00024646,4]
[330087511,1718989888577,-500.0,0.00024646,4]
[330087512,1718989888587,-500.85588002,0.00024646,4]
[330087513,1718989888596,-790.72,0.00024646,4]
[330087514,1718989888606,-500.0,0.00024646,4]
[330087515,1718989888615,-624.6722154,0.00024646,4]
[330087516,1718989888625,-614.11,0.00024646,4]
[330087517,1718989888634,-1508.15,0.00024646,4]
[330087518,1718989888643,-500.0,0.00024646,4]
[330087519,1718989888653,-655.33,0.00024646,4]
[330087520,1718989888665,-900.76,0.00024646,4]
[330087521,1718989888674,-1711.8,0.00024646,4]
[330087522,1718989888684,-500.0,0.00024646,4]
[330087523,1718989888694,-500.0,0.00024646,4]
[330087524,1718989888703,-1259.32,0.00024646,4]
[330087525,1718989888713,-543.58,0.00024646,4]
[330087526,1718989888723,-1395.51,0.00024646,4]
[330087527,1718989888733,-500.0,0.00024646,4]
[330087528,1718989888743,-779.08,0.00024646,4]
[330087529,1718989888752,-882.56,0.00024646,4]
[330087530,1718989888762,-1115.61,0.00024646,4]
[330087531,1718989888772,-500.0,0.00024646,4]
[330087532,1718989888781,-500.0,0.00024646,4]
[330087533,1718989888791,-500.0,0.00024646,4]
[330087534,1718989888800,-500.0,0.00024646,4]
[330087535,1718989888810,-500.0,0.00024646,4]
[330087536,1718989888819,-1759.77,0.00024646,4]
[330087537,1718989888830,-500.0,0.00024646,4]
[330087538,1718989888839,-500.0,0.00024646,4]
[330087539,1718989888848,-500.0,0.00024646,4]
[330087540,1718989888857,-562.58,0.00024646,4]
[330087541,1718989888867,-500.0,0.00024646,4]
[330087542,1718989888877,-1118.22,0.00024646,4]
[330087543,1718989888886,-500.0,0.00024646,4]
[330087544,1718989888896,-1073.61,0.00024646,4]
[330087545,1718989888906,-500.0,0.00024646,4]
[330087546,1718989888917,-1028.37,0.00024646,4]
[330087547,1718989888927,-565.65,0.00024646,4]
[330087548,1718989888937,-1694.42,0.00024646,4]
[330087549,1718989888947,-500.0,0.00024646,4]
[330087550,1718989888956,-538.43,0.00024646,4]
[330087551,1718989888966,-1124.0,0.00024646,4]
[330087552,1718989888976,-1310.65,0.00024646,4]
[330087553,1718989888986,-500.0,0.00024646,4]
[330087554,1718989888996,-500.0,0.00024646,4]
[330087555,1718989889005,-1974.58,0.00024646,4]
[330087556,1718989889015,-1560.47,0.00024646,4]
[330087557,1718989889024,-1456.87,0.00024646,4]
[330087558,1718989889034,-500.0,0.00024646,4]
[330087559,1718989889043,-500.0,0.00024646,4]
[330087560,1718989889053,-1350.6,0.00024646,4]
[330087561,1718989889062,-766.53,0.00024646,4]
[330087562,1718989889071,-500.0,0.00024646,4]
[330087563,1718989889081,-209.58,0.00024646,4]
[330087564,1718989889091,-600.19440038,0.00024646,4]
[330087565,1718989889102,-1549.35,0.00024646,4]
[330087566,1718989889114,-1457.49,0.00024646,4]
[330087567,1718989889123,-500.0,0.00024646,4]
[330087568,1718989889134,-1276.6,0.00024646,4]
[330087569,1718989889144,-607.75,0.00024646,4]
[330087570,1718989889153,-661.51,0.00024646,4]
[330087571,1718989889164,-616.1,0.00024646,4]
[330087572,1718989889173,-759.07,0.00024646,4]
[330087573,1718989889185,-1007.76,0.00024646,4]
[330087574,1718989889195,-558.75,0.00024646,4]
[330087575,1718989889206,-520.63,0.00024646,4]
[330087576,1718989889215,-500.0,0.00024646,4]
[330087577,1718989889226,-500.0,0.00024646,4]
[330087578,1718989889235,-500.0,0.00024646,4]
[330087579,1718989889245,-750.4,0.00024646,4]
[330087580,1718989889254,-500.0,0.00024646,4]
[330087581,1718989889264,-500.0,0.00024646,4]
[330087582,1718989889274,-500.0,0.00024646,4]
[330087583,1718989889284,-500.0,0.00024646,4]
[330087584,1718989889293,-674.53,0.00024646,4]
[330087585,1718989889303,-919.98,0.00024646,4]
[330087586,1718989889313,-1723.58,0.00024646,4]
[330087587,1718989889322,-500.0,0.00024646,4]
[330087588,1718989889332,-500.0,0.00024646,4]
[330087589,1718989889342,-572.44,0.00024646,4]
[330087590,1718989889351,-500.0,0.00024646,4]
[330087591,1718989889362,-966.63,0.00024646,4]
[330087592,1718989889371,-500.0,0.00024646,4]
[330087593,1718989889382,-574.64,0.00024646,4]
[330087594,1718989889391,-500.0,0.00024646,4]
[330087596,1718989889400,-551.74,0.00024646,4]
[330087598,1718989889533,-500.0,0.00024646,4]
[330087599,1718989889543,-500.0,0.00024646,4]
[330087600,1718989889552,-853.88,0.00024646,4]
[330087601,1718989889562,-769.31,0.00024646,4]
[330087602,1718989889571,-500.0,0.00024646,4]
[330087603,1718989889581,-584.18,0.00024646,4]
[330087604,1718989889591,-754.91,0.00024646,4]
[330087605,1718989889600,-500.0,0.00024646,4]
[330087606,1718989889610,-500.0,0.00024646,4]
[330087607,1718989889621,-667.94,0.00024646,4]
[330087608,1718989889630,-920.79,0.00024646,4]
[330087609,1718989889640,-2478.71,0.00024646,4]
[330087610,1718989889651,-843.52,0.00024646,4]
[330087611,1718989889662,-1915.42,0.00024646,4]
[330087612,1718989889671,-878.77,0.00024646,4]
[330087613,1718989889681,-500.0,0.00024646,4]
[330087614,1718989889691,-1207.42,0.00024646,4]
[330087615,1718989889701,-500.0,0.00024646,4]
[330087616,1718989889710,-944.02,0.00024646,4]
[330087617,1718989889720,-1304.29,0.00024646,4]
[330087618,1718989889730,-500.0,0.00024646,4]
[330087619,1718989889740,-729.79,0.00024646,4]
[330087620,1718989889749,-1256.24,0.00024646,4]
[330087621,1718989889759,-500.0,0.00024646,4]
[330087622,1718989889769,-1422.04,0.00024646,4]
[330087623,1718989889778,-656.57,0.00024646,4]
[330087624,1718989889788,-1852.92,0.00024646,4]
[330087625,1718989889798,-625.57,0.00024646,4]
[330087626,1718989889808,-500.0,0.00024646,4]
[330087627,1718989889818,-666.91,0.00024646,4]
[330087628,1718989889827,-1499.6,0.00024646,4]
[330087629,1718989889837,-765.5,0.00024646,4]
[330087630,1718989889846,-2424.04,0.00024646,4]
[330087631,1718989889856,-500.0,0.00024646,4]
[330087632,1718989889866,-4987.88,0.00024646,4]
[330087633,1718989889876,-2211.22,0.00024646,4]
[330087634,1718989889889,-915.87,0.00024646,4]
[330087635,1718989889899,-787.23,0.00024646,4]
[330087636,1718989889908,-637.63,0.00024646,4]
[330087637,1718989889919,-1221.9,0.00024646,4]
[330087638,1718989889929,-500.0,0.00024646,4]
[330087639,1718989889939,-1018.75,0.00024646,4]
[330087640,1718989889948,-501.59,0.00024646,4]
[330087641,1718989889959,-500.0,0.00024646,4]
[330087642,1718989889968,-500.0,0.00024646,4]
[330087643,1718989889978,-869.8,0.00024646,4]
[330087644,1718989889988,-500.0,0.00024646,8]
[330087645,1718989889998,-748.62,0.00024646,4]
[330087646,1718989890008,-2336.91,0.00024646,4]
[330087647,1718989890017,-1361.85,0.00024646,4]
[330087648,1718989890026,-1018.85,0.00024646,4]
[330087649,1718989890035,-16289.33,0.00024646,4]
[330087650,1718989890045,-500.0,0.00024646,4]
[330087651,1718989890054,-2349.59,0.00024646,4]
[330087652,1718989890063,-650.0,0.00024646,4]
[330087653,1718989890073,-500.0,0.00024646,4]
[330087654,1718989890083,-979.16,0.00024646,4]
[330087655,1718989890094,-772.03,0.00024646,4]
[330087656,1718989890108,-1085.42,0.00024646,4]
[330087657,1718989890117,-1856.06,0.00024646,4]
[330087658,1718989890127,-581.94,0.00024646,4]
[330087659,1718989890136,-1071.94,0.00024646,4]
[330087660,1718989890146,-500.0,0.00024646,4]
[330087661,1718989890155,-676.76,0.00024646,4]
[330087662,1718989890165,-1530.22,0.00024646,4]
[330087663,1718989890175,-280.96,0.00024646,4]
[330087664,1718989890187,-252.61,0.00024646,4]
[330087665,1718989890197,-500.0,0.00024646,4]
[330087666,1718989890207,-1352.93,0.00024646,4]
[330087667,1718989890216,-828.24,0.00024646,4]
[330087668,1718989890226,-1938.16,0.00024646,4]
[330087669,1718989890236,-758.24,0.00024646,4]
[330087670,1718989890245,-361.4,0.00024646,4]
[330087671,1718989890254,-500.0,0.00024646,4]
[330087672,1718989890263,-500.0,0.00024646,4]
[330087673,1718989890273,-500.0,0.00024646,4]
[330087674,1718989890282,-500.0,0.00024646,4]
[330087675,1718989890291,-556.62,0.00024646,4]
[330087676,1718989890301,-2348.18,0.00024646,4]
[330087677,1718989890311,-500.0,0.00024646,4]
[330087678,1718989890322,-2261.53,0.00024646,4]
[330087679,1718989890333,-500.0,0.00024646,4]
[330087680,1718989890344,-500.0,0.00024646,4]
[330087681,1718989890353,-600.2,0.00024646,4]
[330087682,1718989890362,-500.0,0.00024646,4]
[330087683,1718989890372,-501.94,0.00024646,4]
[330087684,1718989890381,-200.0,0.00024646,7]
[330087685,1718989890390,-1091.2,0.00024646,4]
[330087686,1718989890400,-500.0,0.00024646,4]
[330087687,1718989890410,-500.0,0.00024646,4]
[330087688,1718989890424,-1100.71,0.00024646,4]
[330087689,1718989890433,-12938.97,0.00024646,4]
[330087690,1718989890443,-1965.19,0.00024646,4]
[330087691,1718989890455,-638.92,0.00024646,4]
[330087692,1718989890465,-635.23,0.00024646,4]
[330087693,1718989890475,-1762.14,0.00024646,4]
[330087694,1718989890485,-992.0,0.00024646,4]
[330087695,1718989890495,-1859.99,0.00024646,4]
[330087696,1718989890504,-500.0,0.00024646,4]
[330087697,1718989890514,-656.75,0.00024646,4]
[330087698,1718989890523,-2222.41,0.00024646,4]
[330087699,1718989890532,-860.86,0.00024646,4]
[330087700,1718989890543,-1049.63,0.00024646,4]
[330087701,1718989890552,-672.47,0.00024646,4]
[330087702,1718989890562,-500.0,0.00024646,4]
[330087703,1718989890571,-3375.56,0.00024646,4]
[330087704,1718989890580,-2480.67,0.00024646,4]
[330087705,1718989890590,-652.86,0.00024646,4]
[330087706,1718989890600,-299.24544717,0.00024646,4]
[330087707,1718989890610,-2569.55,0.00024646,4]
[330087708,1718989890619,-5000.0,0.00024652,2]
[330087709,1718989890628,-25000.0,0.00024656,2]
[330087710,1718989890638,-500.0,0.00024656,4]
[330087711,1718989890647,-1833.6,0.00024656,4]
[330087712,1718989890657,-1662.17,0.00024656,4]
[330087713,1718989890668,-1196.01,0.00024656,4]
[330087714,1718989890678,-1323.04,0.00024656,4]
[330087715,1718989890688,-1815.14,0.00024656,4]
[330087716,1718989890697,-1488.18,0.00024656,4]
[330087717,1718989890707,-657.08,0.00024656,4]
[330087718,1718989890717,-794.21,0.00024656,4]
[330087719,1718989890727,-2173.9,0.00024656,4]
[330087720,1718989890737,-1700.13,0.00024656,4]
[330087721,1718989890747,-703.12,0.00024656,4]
[330087722,1718989890757,-500.0,0.00024656,4]
[330087723,1718989890766,-500.0,0.00024656,4]
[330087724,1718989890776,-500.0,0.00024656,4]
[330087725,1718989890785,-1792.19,0.00024656,4]
[330087726,1718989890795,-645.07,0.00024656,4]
[330087727,1718989890804,-500.0,0.00024656,4]
[330087728,1718989890814,-500.0,0.00024656,4]
[330087729,1718989890823,-831.31,0.00024656,4]
[330087730,1718989890833,-1274.46,0.00024656,4]
[330087731,1718989890842,-500.0,0.00024656,4]
[330087732,1718989890852,-500.0,0.00024656,4]
[330087733,1718989890862,-1390.32,0.00024656,4]
[330087734,1718989890871,-2085.31,0.00024656,4]
[330087735,1718989890882,-2038.36,0.00024656,4]
[330087736,1718989890891,-500.0,0.00024656,4]
[330087737,1718989890901,-961.12,0.00024656,4]
[330087738,1718989890910,-875.07,0.00024656,4]
[330087739,1718989890922,-500.0,0.00024656,4]
[330087740,1718989890932,-727.93,0.00024656,4]
[330087741,1718989890942,-1432.85,0.00024656,4]
[330087742,1718989890951,-1981.72,0.00024656,4]
[330087743,1718989890961,-500.0,0.00024656,4]
[330087744,1718989890970,-1176.2,0.00024656,4]
[330087745,1718989890980,-500.0,0.00024656,4]
[330087746,1718989890990,-1836.11,0.00024656,4]
[330087747,1718989891000,-1666.62,0.00024656,4]
[330087748,1718989891009,-1088.29,0.00024656,4]
[330087749,1718989891019,-500.0,0.00024656,4]
[330087750,1718989891028,-500.0,0.00024656,4]
[330087751,1718989891038,-500.0,0.00024656,4]
[330087752,1718989891047,-1712.42,0.00024656,4]
[330087753,1718989891057,-864.04,0.00024656,4]
[330087754,1718989891066,-1441.44,0.00024656,4]
[330087755,1718989891076,-500.0,0.00024656,4]
[330087756,1718989891085,-664.38,0.00024656,4]
[330087757,1718989891095,-914.89,0.00024656,4]
[330087758,1718989891107,-1656.03,0.00024656,4]
[330087759,1718989891117,-2699.53,0.00024656,4]
[330087760,1718989891126,-1310.25,0.00024656,4]
[330087761,1718989891136,-4009.92,0.00024656,4]
[330087762,1718989891147,-1193.59,0.00024656,4]
[330087763,1718989891156,-500.0,0.00024657,3]
[330087764,1718989891165,-500.0,0.00024657,4]
[330087765,1718989891175,-499.8599254,0.00024657,4]
[330087766,1718989891187,-710.94,0.00024657,4]
[330087767,1718989891198,-500.0,0.00024657,4]
[330087768,1718989891207,-797.24,0.00024657,4]
[330087769,1718989891216,-617.5,0.00024657,4]
[330087770,1718989891226,-500.0,0.00024657,4]
[330087771,1718989891235,-500.0,0.00024657,4]
[330087772,1718989891244,-798.04,0.00024657,4]
[330087773,1718989891254,-735.75,0.00024657,4]
[330087774,1718989891263,-500.0,0.00024657,4]
[330087775,1718989891272,-500.0,0.00024657,4]
[330087776,1718989891281,-500.0,0.00024657,4]
[330087777,1718989891291,-754.93,0.00024657,4]
[330087778,1718989891300,-595.79,0.00024657,4]
[330087779,1718989891309,-738.1,0.00024657,4]
[330087780,1718989891318,-1205.55,0.00024657,4]